Workbook

Sheet Sheet1
A1: WBS | B1: 任务名称 | C1: 工期（天） | D1: 开始时间 | E1: 完成时间 | F1: 前置任务 | G1: 资源名称
A2: 1 | B2: 柏维企信呼项目 | C2: =SUM(C3,C12,C33,C52,C72,C119,C129,C149) -> 170.38 | D2: 2024-6-21 | E2: 2024-12-16
A3: 1.1 | B3: 项目立项 | C3: =SUM(C4:C9) -> 12.25 | D3: 2024-6-21 | E3: 2024-7-5
A4: 1.1.1 | B4: 了解项目情况，获得初步需求 | C4: 1 | D4: 2024-6-21 | E4: 2024-6-24 | G4: 项目经理（杨国强）,部门经理（陆军）
A5: 1.1.2 | B5: 制定技术方案书并进行评审修改 | C5: 3 | D5: 2024-6-21 | E5: 2024-6-28 | G5: 项目经理（杨国强）,部门经理（陆军）
A6: 1.1.3 | B6: 项目初步估算，报价 | C6: 1.75 | D6: 2024-6-28 | E6: 2024-6-28 | G6: 项目经理（杨国强）
A7: 1.1.4 | B7: 确定项目组织架构、资源、职责 | C7: 4 | D7: 2024-7-1 | E7: 2024-7-5 | G7: 项目经理（杨国强）
A8: 1.1.5 | B8: SOW项目工作说明书编写 | C8: 1 | D8: 2024-7-5 | E8: 2024-7-5 | G8: 项目经理（杨国强）
A9: 1.1.6 | B9: 召开项目立项会议 | C9: 1.5 | D9: 2024-7-5 | E9: 2024-7-5 | G9: 项目经理（杨国强）,部门经理（陆军）,编码人员（夏轶凡）,测试人员（龙婷）,高层领导（陆军）,配置管理（许乐忠）,设计人员（杭莹）,质量保证（薛金元）
A12: 1.2 | B12: 策划阶段 | C12: =SUM(C13,C20,C28) -> 15.75 | D12: 2024-7-9 | E12: 2024-7-16
A13: 1.2.1 | B13: 项目估算 | C13: =SUM(C14:C19) -> 10 | D13: 2024-7-9 | E13: 2024-7-16
A14: 1.2.1.1 | B14: 建立项目过程管理体系及规范库，存档项目过程输出文件；搭建本项目配置库 | C14: 2 | D14: 2024-7-9 | E14: 2024-7-10 | G14: 配置管理（许乐忠）
A15: 1.2.1.2 | B15: 确定软件生存周期，初步制定CM和QA计划 | C15: 2 | D15: 2024-7-9 | E15: 2024-7-10 | G15: 项目经理（杨国强）
A16: 1.2.1.3 | B16: 制定本项目定义过程并由EPG审批 | C16: 2 | D16: 2024-7-10 | E16: 2024-7-11 | G16: 项目经理（杨国强）
A17: 1.2.1.4 | B17: 进行WBS分解 | C17: 1 | D17: 2024-7-11 | E17: 2024-7-11 | G17: 项目经理（杨国强）
A18: 1.2.1.5 | B18: 估算项目规模、工作量、进度、成本、资源 | C18: 2 | D18: 2024-7-15 | E18: 2024-7-16 | G18: 项目经理（杨国强）
A19: 1.2.1.6 | B19: 依据《风险检查表》识别项目风险、初步制定计划 | C19: 1 | D19: 2024-7-16 | E19: 2024-7-16 | G19: 项目经理（杨国强）
A20: 1.2.2 | B20: 项目计划 | C20: =SUM(C21:C23) -> 3.75 | D20: 2024-7-17 | E20: 2024-7-19
A21: 1.2.2.1 | B21: 完善项目进度计划 | C21: 0.5 | D21: 2024-7-17 | E21: 2024-7-17 | G21: 项目经理（杨国强）
A22: 1.2.2.2 | B22: 制定项目计划书、审批项目计划并修改发布 | C22: 0.5 | D22: 2024-7-18 | E22: 2024-7-18 | G22: 项目经理（杨国强）
A23: 1.2.2.3 | B23: 编制项目从属计划 | C23: =SUM(C24:C27) -> 2.75 | D23: 2024-7-18 | E23: 2024-7-18
A24: 1.2.2.3.1 | B24: 编写《需求调研计划》 | C24: 0.25 | D24: 2024-7-18 | E24: 2024-7-18 | G24: 需求人员（鲁南）
A25: 1.2.2.3.2 | B25: 编写《测试计划》 | C25: 0.25 | D25: 2024-7-18 | E25: 2024-7-18 | G25: 测试人员（龙婷）
A26: 1.2.2.3.3 | B26: 编写《培训计划》 | C26: 0.25 | D26: 2024-7-18 | E26: 2024-7-18 | G26: 培训人员（张海燕）
A27: 1.2.2.4 | B27: 主计划及从属计划的评审，记录并修改缺陷 | C27: 2 | D27: 2024-7-18 | E27: 2024-7-19 | G27: 客户代表,项目经理（杨国强）
A28: 1.2.3 | B28: 策划里程碑 | C28: =SUM(C29:C30) -> 2 | D28: 2024-7-19 | E28: 2024-7-22
A29: 1.2.3.1 | B29: 策划里程碑会议，汇报里程碑计划 | C29: 1.75 | D29: 2024-7-19 | E29: 2024-7-22 | G29: 项目经理（杨国强）,部门经理（陆军）,编码人员（夏轶凡）,测试人员（龙婷）,高层领导（陆军）,配置管理（许乐忠）,设计人员（杭莹）,质量保证（薛金元）
A30: 1.2.3.2 | B30: 项目经理必要时对项目计划进行阶段性调整 | C30: 0.25 | D30: 2024-7-19 | E30: 2024-7-22 | G30: 项目经理（杨国强）
A33: 1.3 | B33: 需求阶段 | C33: =SUM(C34,C37,C47) -> 16 | D33: 2024-7-18 | E33: 2024-8-8
A34: 1.3.1 | B34: 需求调研 | C34: =SUM(C35:C36) -> 3.25 | D34: 2024-7-18 | E34: 2024-7-24
A35: 1.3.1.1 | B35: 进行调研并编写《需求调研计划》包含需要配合项提交客户确认 | C35: 3 | D35: 2024-7-18 | E35: 2024-7-24 | G35: 客户代表
A36: 1.3.1.2 | B36: 编写《需求跟踪矩阵》填写原始需求 | C36: 0.25 | D36: 2024-7-19 | E36: 2024-7-19 | G36: 项目经理（杨国强）
A37: 1.3.2 | B37: 需求分析 | C37: =SUM(C38:C46) -> 11.5 | D37: 2024-7-22 | E37: 2024-8-2
A38: 1.3.2.1 | B38: 分析需求编写《用户需求说明书》 | C38: 2 | D38: 2024-7-22 | E38: 2024-7-25 | G38: 项目经理（杨国强）
A39: 1.3.2.2 | B39: 评审《用户需求说明书》，记录并修改缺陷 | C39: 0.5 | D39: 2024-7-29 | E39: 2024-7-29 | G39: 项目经理（杨国强）,编码人员（夏轶凡）,部门经理（陆军）,测试人员（龙婷）,高层领导（陆军）,客户代表,配置管理（许乐忠）,设计人员（杭莹）,需求人员（鲁南）,质量保证（薛金元）
A40: 1.3.2.3 | B40: QA检查《用户需求说明书》，记录不符合项并修改 | C40: 0.5 | D40: 2024-7-29 | E40: 2024-7-29 | G40: 质量保证（薛金元）
A41: 1.3.2.4 | B41: 将评审后《用户需求说明书》提交客户确认 | C41: 1 | D41: 2024-7-30 | E41: 2024-7-31 | G41: 项目经理（杨国强）,客户代表
A42: 1.3.2.5 | B42: 编写《需求规格说明书》 | C42: 4 | D42: 2024-7-31 | E42: 2024-7-31 | G42: 项目经理（杨国强）
A43: 1.3.2.6 | B43: 依据《需求规格说明书》编写《系统测试用例》 | C43: 2 | D43: 2024-7-31 | E43: 2024-7-31 | G43: 测试人员（龙婷）
A44: 1.3.2.7 | B44: QA检查《需求规格说明书》和《系统测试用例》 | C44: 0.25 | D44: 2024-7-31 | E44: 2024-7-31 | G44: 项目经理（杨国强）
A45: 1.3.2.8 | B45: 评审《需求规格说明书》和《系统测试用例》并修改缺陷 | C45: 1 | D45: 2024-8-1 | E45: 2024-8-1 | G45: 项目经理（杨国强）,编码人员（夏轶凡）,部门经理（陆军）,测试人员（龙婷）,高层领导（陆军）,客户代表,配置管理（许乐忠）,设计人员（杭莹）,需求人员（鲁南）,质量保证（薛金元）
A46: 1.3.2.9 | B46: 评审《需求规格说明书》与客户评审，需求签字 | C46: 0.25 | D46: 2024-8-2 | E46: 2024-8-2 | G46: 项目经理（杨国强）,编码人员（夏轶凡）,部门经理（陆军）,测试人员（龙婷）,高层领导（陆军）,客户代表,配置管理（许乐忠）,设计人员（杭莹）,需求人员（鲁南）,质量保证（薛金元）
A47: 1.3.3 | B47: 需求里程碑 | C47: =SUM(C48:C49) -> 1.25 | D47: 2024-8-5 | E47: 2024-8-8
A48: 1.3.3.1 | B48: 需求里程碑会议，填写《需求里程碑状态报告》 | C48: 0.25 | D48: 2024-8-5 | E48: 2024-8-8 | G48: 需求人员（鲁南）,项目经理（杨国强）,编码人员（夏轶凡）,部门经理（陆军）,测试人员（龙婷）,高层领导（陆军）,客户代表,配置管理（许乐忠）,设计人员（杭莹）,质量保证（薛金元）
A49: 1.3.3.2 | B49: 项目经理必要时对项目计划进行阶段性调整 | C49: 1 | D49: 2024-8-6 | E49: 2024-8-7 | G49: 项目经理（杨国强）
A52: 1.4 | B52: 设计阶段 | C52: =SUM(C54,C53,C60,C67) -> 26.75 | D52: 2024-8-9 | E52: 2024-9-10
A53: 1.4.1 | B53: 完善系统技术方案，选型技术方案，开发语言，使用框架（前端，后端，插件工具） | C53: 2 | D53: 2024-8-9 | E53: 2024-8-12 | G53: 设计人员（杭莹）
A54: 1.4.2 | B54: 系统概要设计 | C54: =SUM(C55:C59) -> 11 | D54: 2024-8-12 | E54: 2024-8-19
A55: 1.4.2.1 | B55: 进行总体设计，编写《概要设计说明书》 | C55: 5 | D55: 2024-8-12 | E55: 2024-8-14 | G55: 项目经理（杨国强）,设计人员（杭莹）
A56: 1.4.2.2 | B56: 依据《概要设计说明书》编制《集成测试用例》 | C56: 4 | D56: 2024-8-15 | E56: 2024-8-19 | G56: 测试人员（龙婷）,设计人员（杭莹）
A57: 1.4.2.3 | B57: QA检查《概要设计说明书》及《集成测试用例》 | C57: 1 | D57: 2024-8-19 | E57: 2024-8-19 | G57: 质量保证（薛金元）,测试人员（龙婷）,设计人员（杭莹）
A58: 1.4.2.4 | B58: 评审《概要设计说明书》和《集成测试用例》并修改缺陷 | C58: 0.5 | D58: 2024-8-19 | E58: 2024-8-19 | G58: 测试人员（龙婷）,项目经理（杨国强）,设计人员（杭莹）,编码人员（夏轶凡）,质量保证（薛金元）
A59: 1.4.2.5 | B59: 编写《项目发布步骤计划》 | C59: 0.5 | D59: 2024-8-19 | E59: 2024-8-19 | G59: 设计人员（杭莹）,项目经理（杨国强）
A60: 1.4.3 | B60: 系统详细设计 | C60: =SUM(C61:C66) -> 12 | D60: 2024-8-20 | E60: 2024-9-9
A61: 1.4.3.1 | B61: 依据《概要设计说明书》编写《详细设计说明书》,包含数据库设计，接口设计，平台模块设计 | C61: 5 | D61: 2024-8-20 | E61: 2024-8-26 | G61: 设计人员（杭莹）
A62: 1.4.3.2 | B62: 依据《详细设计说明书》编制《单元测试用例》 | C62: 4 | D62: 2024-8-28 | E62: 2024-9-2 | G62: 编码人员（夏轶凡）
A63: 1.4.3.3 | B63: QA检查《详细设计说明书》及《单元测试用例》 | C63: 1 | D63: 2024-9-2 | E63: 2024-9-2 | G63: 质量保证（薛金元）,编码人员（夏轶凡）,设计人员（杭莹）
A64: 1.4.3.4 | B64: 评审《详细设计说明书》和《单元测试用例》并修改缺陷 | C64: 0.5 | D64: 2024-9-3 | E64: 2024-9-3 | G64: 项目经理（杨国强）,设计人员（杭莹）,编码人员（夏轶凡）,质量保证（薛金元）
A65: 1.4.4 | B65: 编写《交付件一览表》初稿 | C65: 0.5 | D65: 2024-9-3 | E65: 2024-9-3 | G65: 项目经理（杨国强）
A66: 1.4.5 | B66: 编写《接口列表文档》 | C66: 1 | D66: 2024-9-6 | E66: 2024-9-6 | G66: 设计人员（杭莹）
A67: 1.4.6 | B67: 设计里程碑 | C67: =SUM(C68:C69) -> 1.75 | D67: 2024-9-9 | E67: 2024-9-10
A68: 1.4.6.1 | B68: 设计里程碑会议，更新设计计划进度 | C68: 0.75 | D68: 2024-9-9 | E68: 2024-9-9 | G68: 项目经理（杨国强）,部门经理（陆军）,设计人员（杭莹）,编码人员（夏轶凡）,测试人员（龙婷）,配置管理（许乐忠）,质量保证（薛金元）,培训人员（张海燕）
A69: 1.4.6.2 | B69: 项目经理必要时对项目计划进行阶段性调整 | C69: 1 | D69: 2024-9-10 | E69: 2024-9-10 | G69: 项目经理（杨国强）
A72: 1.5 | B72: 实现阶段 | C72: =SUM(C73,C101,C103,C107,C114) -> 70.38 | D72: 2024-9-9 | E72: 2024-11-14
A73: 1.5.1 | B73: 代码编写 | C73: 48.5 | D73: 2024-9-9 | E73: 2024-11-1
A74: 1.5.1.1 | B74: 用户管理 | C74: 3 | D74: 2024-9-11 | E74: 2024-9-13 | G74: 设计人员（杭莹）,编码人员（夏轶凡）
A75: 1.5.1.2 | B75: 机构管理 | C75: 3 | D75: 2024-9-13 | E75: 2024-9-16 | G75: 设计人员（杭莹）,编码人员（夏轶凡）
A76: 1.5.1.3 | B76: 岗位管理 | C76: 1 | D76: 2024-9-16 | E76: 2024-9-16 | G76: 设计人员（杭莹）,编码人员（夏轶凡）
A77: 1.5.1.4 | B77: 字典管理 | C77: 3.5 | D77: 2024-9-18 | E77: 2024-9-19 | G77: 设计人员（杭莹）,编码人员（夏轶凡）
A78: 1.5.1.5 | B78: 菜单管理 | C78: 1.13 | D78: 2024-9-9 | E78: 2024-9-10 | G78: 编码人员（夏轶凡）
A79: 1.5.1.6 | B79: 租户管理 | C79: 1 | D79: 2024-9-11 | E79: 2024-9-16 | F79: 69 | G79: 编码人员（夏轶凡）
A80: 1.5.1.7 | B80: 参数管理 | C80: 1 | D80: 2024-9-11 | E80: 2024-9-16 | G80: 编码人员（夏轶凡）
A81: 1.5.1.8 | B81: 应用管理 | C81: 1 | D81: 2024-9-11 | E81: 2024-9-16 | G81: 编码人员（夏轶凡）
A82: 1.5.1.9 | B82: 任务名单模板 | C82: 1 | D82: 2024-9-16 | E82: 2024-9-16 | F82: 72 | G82: 编码人员（夏轶凡）
A83: 1.5.1.10 | B83: 外呼任务管理 | C83: 1.88 | D83: 2024-9-16 | E83: 2024-9-16 | G83: 编码人员（夏轶凡）
A84: 1.5.1.11 | B84: 定时任务管理 | C84: 1 | D84: 2024-9-12 | E84: 2024-9-12 | G84: 编码人员（夏轶凡）
A85: 1.5.1.12 | B85: 预测外呼团队管理 | C85: 1 | D85: 2024-9-16 | E85: 2024-9-16 | F85: 75 | G85: 编码人员（夏轶凡）
A86: 1.5.1.13 | B86: 微信客服 | C86: 1 | D86: 2024-9-18 | E86: 2024-9-18 | F86: 76 | G86: 编码人员（夏轶凡）
A87: 1.5.1.14 | B87: 网页客服 | C87: 1 | D87: 2024-9-19 | E87: 2024-9-19 | F87: 77 | G87: 编码人员（夏轶凡）
A88: 1.5.1.15 | B88: 微信素材 | C88: 8.5 | D88: 2024-9-19 | E88: 2024-9-26 | G88: 编码人员（夏轶凡）
A89: 1.5.1.16 | B89: 设置中心 | C89: 1 | D89: 2024-9-16 | E89: 2024-9-24 | F89: 74 | G89: 编码人员（夏轶凡）
A90: 1.5.1.17 | B90: 坐席管理 | C90: 1 | D90: 2024-9-16 | E90: 2024-10-8 | G90: 编码人员（夏轶凡）
A91: 1.5.1.18 | B91: 电话小结 | C91: 1 | D91: 2024-9-16 | E91: 2024-10-8 | G91: 编码人员（夏轶凡）
A92: 1.5.1.19 | B92: 工作时间 | C92: 1 | D92: 2024-9-16 | E92: 2024-10-8 | G92: 编码人员（夏轶凡）
A93: 1.5.1.20 | B93: 质检评分 | C93: 9.75 | D93: 2024-9-23 | E93: 2024-10-8 | G93: 编码人员（夏轶凡）
A94: 1.5.1.21 | B94: 会话标签 | C94: 9.75 | D94: 2024-9-23 | E94: 2024-10-8 | G94: 编码人员（夏轶凡）
A95: 1.5.1.22 | B95: 排班管理 | C95: 15.5 | D95: 2024-10-9 | E95: 2024-10-24 | F95: 85 | G95: 编码人员（夏轶凡）
A96: 1.5.1.23 | B96: 考试管理 | C96: 1 | D96: 2024-10-24 | E96: 2024-10-25 | F96: 86 | G96: 编码人员（夏轶凡）
A97: 1.5.1.24 | B97: 培训管理 | C97: 1 | D97: 2024-10-31 | E97: 2024-11-1 | F97: 87 | G97: 编码人员（夏轶凡）
A98: 1.5.1.25 | B98: 黑名单管理 | C98: 1 | D98: 2024-10-31 | E98: 2024-11-1 | G98: 编码人员（夏轶凡）
A99: 1.5.1.26 | B99: 上传和下载中心 | C99: 1 | D99: 2024-10-31 | E99: 2024-11-1 | G99: 编码人员（夏轶凡）
A100: 1.5.1.27 | B100: 知识库 | C100: 1 | D100: 2024-10-31 | E100: 2024-11-1 | G100: 编码人员（夏轶凡）
A101: 1.5.2 | B101: 代码走查 | C101: 4.88 | D101: 2024-10-17 | E101: 2024-10-23
A102: 1.5.2.1 | B102: QA检查核心代码 | C102: 5 | D102: 2024-10-17 | E102: 2024-10-23 | G102: 质量保证（薛金元）,编码人员（夏轶凡）,项目经理（杨国强）
A103: 1.5.3 | B103: 单元测试 | C103: =SUM(C104:C106) -> 9 | D103: 2024-10-31 | E103: 2024-11-7
A104: 1.5.3.1 | B104: 依据《单元测试用例》执行单元测试 | C104: 5 | D104: 2024-10-31 | E104: 2024-11-5 | G104: 编码人员（夏轶凡）,测试人员（龙婷）
A105: 1.5.3.2 | B105: 记录发现的BUG并进行代码修改至BUG关闭 | C105: 2 | D105: 2024-11-5 | E105: 2024-11-6 | G105: 编码人员（夏轶凡）,测试人员（龙婷）
A106: 1.5.3.3 | B106: 记录BUG产生场景及修复状态，并进行维护用于报告生成 | C106: 2 | D106: 2024-11-6 | E106: 2024-11-7 | G106: 测试人员（龙婷）
A107: 1.5.4 | B107: 项目发布 | C107: =SUM(C108:C113) -> 7 | D107: 2024-11-7 | E107: 2024-11-13
A108: 1.5.4.1 | B108: 依据《项目发布步骤计划》搭建产品集成和测试环境 | C108: 0.5 | D108: 2024-11-7 | E108: 2024-11-7 | G108: 设计人员（杭莹）,编码人员（夏轶凡）,测试人员（龙婷）
A109: 1.5.4.2 | B109: 依据《项目发布步骤计划》进行检查准备情况 | C109: 0.5 | D109: 2024-11-7 | E109: 2024-11-7 | G109: 项目经理（杨国强）,设计人员（杭莹）,测试人员（龙婷）
A110: 1.5.4.3 | B110: 准备完毕进行项目发布 | C110: 1 | D110: 2024-11-7 | E110: 2024-11-7 | G110: 项目经理（杨国强）,编码人员（夏轶凡）
A111: 1.5.4.4 | B111: 依据《测试用例》执行集成测试 | C111: 2 | D111: 2024-11-7 | E111: 2024-11-7 | G111: 测试人员（龙婷）
A112: 1.5.4.5 | B112: 记录发现的BUG并进行代码修改至BUG关闭 | C112: 2 | D112: 2024-11-7 | E112: 2024-11-8 | G112: 测试人员（龙婷）,编码人员（夏轶凡）
A113: 1.5.4.6 | B113: 记录BUG产生场景及修复状态，并在Redmine工具中进行维护用于报告生成 | C113: 1 | D113: 2024-11-13 | E113: 2024-11-13 | G113: 测试人员（龙婷）
A114: 1.5.5 | B114: 实现里程碑 | C114: =SUM(C115:C116) -> 1 | D114: 2024-11-14 | E114: 2024-11-14
A115: 1.5.5.1 | B115: 实现里程碑会议，填写《实现里程碑状态报告》 | C115: 0.5 | D115: 2024-11-14 | E115: 2024-11-14 | G115: 项目经理（杨国强）,高层领导（陆军）,部门经理（陆军）,设计人员（杭莹）,编码人员（夏轶凡）,测试人员（龙婷）,配置管理（许乐忠）,质量保证（薛金元）,培训人员（张海燕）
A116: 1.5.5.2 | B116: 项目经理必要时对项目计划进行阶段性调整 | C116: 0.5 | D116: 2024-11-14 | E116: 2024-11-14 | G116: 项目经理（杨国强）
A119: 1.6 | B119: 测试阶段 | C119: =SUM(C120:C124) -> 11 | D119: 2024-11-14 | E119: 2024-12-2
A120: 1.6.1 | B120: 依据《测试计划》搭建测试环境 | C120: 0.5 | D120: 2024-11-14 | E120: 2024-11-14 | G120: 测试人员（龙婷）,编码人员（夏轶凡）
A121: 1.6.2 | B121: 依据《测试用例》执行系统测试 | C121: 3 | D121: 2024-11-14 | E121: 2024-11-15 | G121: 测试人员（龙婷）
A122: 1.6.3 | B122: 记录发现的BUG并进行代码修改至BUG关闭 | C122: 4 | D122: 2024-11-19 | E122: 2024-11-21 | G122: 测试人员（龙婷）,编码人员（夏轶凡）
A123: 1.6.4 | B123: 记录BUG产生场景及修复状态，并进行维护用于报告生成 | C123: 1 | D123: 2024-11-21 | E123: 2024-11-21 | G123: 测试人员（龙婷）
A124: 1.6.5 | B124: 测试里程碑 | C124: =SUM(C125:C126) -> 2.5 | D124: 2024-11-27 | E124: 2024-12-2
A125: 1.6.5.1 | B125: 测试里程碑会议，填写《测试里程碑状态报告》 | C125: 0.5 | D125: 2024-11-27 | E125: 2024-11-27 | G125: 项目经理（杨国强）,部门经理（陆军）,设计人员（杭莹）,编码人员（夏轶凡）,测试人员（龙婷）,配置管理（许乐忠）,质量保证（薛金元）,培训人员（张海燕）
A126: 1.6.5.2 | B126: 项目经理必要时对项目计划进行阶段性调整 | C126: 2 | D126: 2024-11-28 | E126: 2024-12-2 | G126: 项目经理（杨国强）
A129: 1.7 | B129: 试运行与验收 | C129: =SUM(C138,C130,C144) -> 11.75 | D129: 2024-12-2 | E129: 2024-12-10
A130: 1.7.1 | B130: 试行安装部署 | C130: =SUM(C131:C137) -> 6 | D130: 2024-12-2 | E130: 2024-12-5
A131: 1.7.1.1 | B131: 编写《用户手册》 | C131: 1.5 | D131: 2024-12-2 | E131: 2024-12-3 | G131: 测试人员（龙婷）
A132: 1.7.1.2 | B132: 编写《培训计划》 | C132: 0.5 | D132: 2024-12-2 | E132: 2024-12-2 | G132: 培训人员（张海燕）
A133: 1.7.1.3 | B133: 制定《试运行计划》提交客户确认 | C133: 1.5 | D133: 2024-12-2 | E133: 2024-12-3 | G133: 项目经理（杨国强）,客户代表
A134: 1.7.1.4 | B134: 更新完善《交付件一览表》 | C134: 0.5 | D134: 2024-12-3 | E134: 2024-12-3 | G134: 设计人员（杭莹）,项目经理（杨国强）
A135: 1.7.1.5 | B135: 更新完善《用户手册》 | C135: 0.5 | D135: 2024-12-4 | E135: 2024-12-4 | G135: 测试人员（龙婷）
A136: 1.7.1.6 | B136: 根据《交付件一览表》将项目中交付物入库 | C136: 0.5 | D136: 2024-12-4 | E136: 2024-12-4 | G136: 配置管理（许乐忠）
A137: 1.7.1.7 | B137: 系统安装部署,编写《现场安装记录表》交用户确认 | C137: 1 | D137: 2024-12-5 | E137: 2024-12-5 | G137: 项目经理（杨国强）,设计人员（杭莹）,测试人员（龙婷）
A138: 1.7.2 | B138: 项目验收 | C138: =SUM(C139:C143) -> 4.75 | D138: 2024-12-5 | E138: 2024-12-10
A139: 1.7.2.1 | B139: 项目经理向客户提出验收申请，编写《验收计划》 | C139: 0.5 | D139: 2024-12-5 | E139: 2024-12-5 | G139: 项目经理（杨国强）,客户代表,高层领导（陆军）
A140: 1.7.2.2 | B140: 测试人员与客户共同编写《验收测试用例》 | C140: 0.5 | D140: 2024-12-5 | E140: 2024-12-5 | G140: 测试人员（龙婷）,客户代表,项目经理（杨国强）
A141: 1.7.2.3 | B141: 执行《验收测试用例》 | C141: 1 | D141: 2024-12-5 | E141: 2024-12-5 | G141: 测试人员（龙婷）,客户代表
A142: 1.7.2.4 | B142: 记录发现的BUG并进行代码修改至BUG关闭 | C142: 0.75 | D142: 2024-12-5 | E142: 2024-12-6 | G142: 测试人员（龙婷）,编码人员（夏轶凡）
A143: 1.7.2.5 | B143: 编写《验收测试报告》，客户签字验收 | C143: 2 | D143: 2024-12-6 | E143: 2024-12-10 | G143: 测试人员（龙婷）
A144: 1.7.3 | B144: 验收里程碑 | C144: 1 | D144: 2024-12-10 | E144: 2024-12-10
A145: 1.7.3.1 | B145: 验收里程碑会议，填写《验收里程碑状态报告》 | C145: 0.5 | D145: 2024-12-10 | E145: 2024-12-10 | G145: 项目经理（杨国强）,高层领导（陆军）,部门经理（陆军）,设计人员（杭莹）,编码人员（夏轶凡）,测试人员（龙婷）,配置管理（许乐忠）,质量保证（薛金元）,培训人员（张海燕）
A146: 1.7.3.2 | B146: 项目经理必要时对项目计划进行阶段性调整 | C146: 0.5 | D146: 2024-12-10 | E146: 2024-12-10 | G146: 项目经理（杨国强）
A149: 1.8 | B149: 项目结项 | C149: =SUM(C150:C153) -> 6.5 | D149: 2024-12-11 | E149: 2024-12-16
A150: 1.8.1 | B150: 编写《项目总结报告》，整理经验教训 | C150: 1 | D150: 2024-12-11 | E150: 2024-12-11 | G150: 项目经理（杨国强）
A151: 1.8.2 | B151: 项目总结大会（总结度量、经验以及教训） | C151: 1.5 | D151: 2024-12-11 | E151: 2024-12-12 | G151: 项目经理（杨国强）[50%],高层领导（陆军）[50%],部门经理（陆军）[50%],设计人员（杭莹）[50%],编码人员（夏轶凡）[50%],测试人员（龙婷）[50%],配置管理（许乐忠）[50%],质量保证（薛金元）[50%],培训人员（张海燕）[50%]
A152: 1.8.3 | B152: 更新《项目总结报告》 | C152: 2 | D152: 2024-12-12 | E152: 2024-12-12 | G152: 项目经理（杨国强）
A153: 1.8.4 | B153: EPG评审并将度量数据、优秀案例、经验教训等纳入组织财富库 | C153: 2 | D153: 2024-12-13 | E153: 2024-12-16 | G153: 项目经理（杨国强）,部门经理（陆军）
